fUST/lending_fUST_20240322
["ID","MTS","AMOUNT","RATE_DAILY","PERIOD"]
[319967824,1711042943425,-180.755455,0.00027397,2]
[319967825,1711042943448,-166.666666,0.00027397,2]
[319967826,1711042943470,-218.69732216,0.000274,2]
[319967827,1711042943491,-40639.18202483,0.000275,2]
[319967828,1711042943514,-396.419232,0.000275,2]
[319967829,1711042943535,-396.419238,0.000275,2]
[319967830,1711042943558,-210.03373486,0.00027664,2]
[319967831,1711042943582,-150.87929656,0.00027807,2]
[319967832,1711042943662,-505.18100383,0.00028,2]
[319967833,1711042943686,-166.666666,0.00028038,2]
[319967834,1711042943711,-301.75859313,0.00028274,4]
[319967835,1711042943733,-367.80420416,0.00028527,4]
[319967836,1711042943756,-166.666666,0.00028679,2]
[319967837,1711042943780,-603.51718625,0.00028749,7]
[319967838,1711042943805,-187138.37087466,0.0002877,2]
[319967839,1711042943826,-150.0,0.00028849,2]
[319967840,1711042943847,-150.0,0.00028999,2]
[319967841,1711042943868,-150.0,0.00028999,2]
[319967842,1711042943894,-698.04978452,0.00029,30]
[319967843,1711042943916,-411.1922709,0.00029,2]
[319967844,1711042943938,-837.40437979,0.00029,2]
[319967845,1711042943959,-660.06834125,0.00029096,2]
[319967846,1711042943981,-166.666666,0.00029321,2]
[319967847,1711042944002,-309.72125088,0.00029393,2]
[319967848,1711042944023,-239.17077989,0.00029393,2]
[319967849,1711042944044,-169.40931892,0.00029393,2]
[319967850,1711042944067,-1207.0343725,0.00029477,30]
[319967851,1711042944089,-2502.20158978,0.000295,2]
[319967852,1711042944110,-5000.0,0.00029578,2]
[319967853,1711042944132,-7750.33441955,0.0002988,2]
[319967854,1711042944159,-400.0,0.000299,2]
[319967855,1711042944182,-166.666666,0.00029962,2]
[319967856,1711042944205,-2746.34065419,0.00029998,2]
[319967857,1711042944228,-950296.33829108,0.0003,7]
[319967858,1711042944251,-167.66784036,0.0003,2]
[319967859,1711042944274,-161.0,0.0003,2]
[319967860,1711042944704,3210.98440221,0.00028749,2]
[319967861,1711042945399,288.10892218,0.0002985,2]
[319967862,1711042948135,154.8915759,0.00029849,2]
[319967863,1711042949744,154.8915759,0.00029848,2]
[319967864,1711042950494,354.59975112,0.00029848,2]
[319967865,1711042953268,-151.0,0.00030106,35]
[319967866,1711042953292,-151.0,0.00030116,35]
[319967867,1711042953314,-151.0,0.00030126,35]
[319967868,1711042953335,-500.0,0.00030136,2]
[319967869,1711042953356,-500.0,0.00030136,2]
[319967870,1711042953379,-500.0,0.00030136,2]
[319967871,1711042953405,-500.0,0.00030136,2]
[319967872,1711042953429,-500.0,0.00030136,2]
[319967873,1711042953453,-500.60557745,0.00030136,2]
[319967874,1711042953477,-500.0,0.00030136,2]
[319967875,1711042953501,-500.0,0.00030136,2]
[319967876,1711042953523,-500.0,0.00030136,2]
[319967877,1711042953546,-1728.07,0.00030136,2]
[319967878,1711042953576,-500.0,0.00030136,2]
[319967879,1711042953601,-500.0,0.00030136,2]
[319967880,1711042953624,-155.55662063,0.00030136,2]
[319967881,1711042953650,-500.0,0.00030136,2]
[319967882,1711042953676,-500.0,0.00030136,2]
[319967883,1711042953781,-500.0,0.00030136,2]
[319967884,1711042953805,-852.3,0.00030136,2]
[319967885,1711042953828,-500.0,0.00030136,2]
[319967886,1711042953850,-500.0,0.00030136,2]
[319967887,1711042953873,-500.8129934,0.00030136,2]
[319967888,1711042953902,-305.5489214,0.00030136,2]
[319967889,1711042953926,-500.0,0.00030136,2]
[319967890,1711042953950,-500.56016973,0.00030136,2]
[319967891,1711042953975,-500.0,0.00030136,2]
[319967892,1711042953999,-500.0,0.00030136,2]
[319967893,1711042954024,-500.0,0.00030136,2]
[319967894,1711042954048,-500.0,0.00030136,2]
[319967895,1711042954072,-547.75457667,0.00030136,2]
[319967896,1711042954096,-500.48664432,0.00030136,2]
[319967897,1711042954119,-500.0,0.00030136,2]
[319967898,1711042954147,-500.0,0.00030136,2]
[319967899,1711042954170,-500.0,0.00030136,2]
[319967900,1711042954195,-177.58733127,0.00030136,2]
[319967901,1711042954217,-1162.45,0.00030136,2]
[319967902,1711042954239,-500.67143048,0.00030136,2]
[319967903,1711042954262,-500.0,0.00030136,2]
[319967904,1711042954285,-500.0,0.00030136,2]
[319967905,1711042954307,-500.0,0.00030136,2]
[319967906,1711042954330,-500.0,0.00030136,2]
[319967907,1711042954353,-500.0,0.00030136,2]
[319967908,1711042954377,-500.0,0.00030136,2]
[319967909,1711042954403,-504.08240962,0.00030136,2]
[319967910,1711042954426,-500.0,0.00030136,2]
[319967911,1711042954449,-501.57910099,0.00030136,2]
[319967912,1711042954472,-500.0,0.00030136,2]
[319967913,1711042954494,-500.0,0.00030136,2]
[319967914,1711042954516,-500.63308656,0.00030136,2]
[319967915,1711042954537,-500.0,0.00030136,2]
[319967916,1711042954562,-500.0,0.00030136,2]
[319967917,1711042954584,-500.0,0.00030136,2]
[319967918,1711042954606,-500.0,0.00030136,2]
[319967919,1711042954628,-500.0,0.00030136,2]
[319967920,1711042954652,-500.0,0.00030136,2]
[319967921,1711042954680,-500.0,0.00030136,2]
[319967922,1711042954702,-500.0,0.00030136,2]
[319967923,1711042954724,-500.0,0.00030136,2]
[319967924,1711042954744,-2083.8,0.00030136,2]
[319967925,1711042954768,-500.0,0.00030136,2]
[319967926,1711042954789,-500.0,0.00030136,2]
[319967927,1711042954811,-500.65901999,0.00030136,2]
[319967928,1711042954834,-160.10766649,0.00030136,2]
[319967929,1711042954857,-500.0,0.00030136,2]
[319967930,1711042954880,-385.60473519,0.00030136,2]
[319967931,1711042954904,-500.51558516,0.00030136,2]
[319967932,1711042954925,-512.44942876,0.00030136,2]
[319967933,1711042954946,-500.0,0.00030136,2]
[319967934,1711042954968,-500.0,0.00030136,2]
[319967935,1711042954990,-500.0,0.00030136,2]
[319967936,1711042955012,-500.0,0.00030136,2]
[319967937,1711042955034,-304.78983738,0.00030136,2]
[319967938,1711042955058,-500.0,0.00030136,2]
[319967939,1711042955081,-500.0,0.00030136,2]
[319967940,1711042955103,-500.9925589,0.00030136,2]
[319967941,1711042955125,-500.0,0.00030136,2]
[319967942,1711042955150,-1308.86,0.00030136,2]
[319967943,1711042955174,-757.14,0.00030136,2]
[319967944,1711042955196,-760.22,0.00030136,2]
[319967945,1711042955218,-500.0,0.00030136,2]
[319967946,1711042955240,-716.28,0.00030136,2]
[319967947,1711042955263,-309.72125088,0.00030136,2]
[319967948,1711042955284,-500.0,0.00030136,2]
[319967949,1711042955306,-500.0,0.00030136,2]
[319967950,1711042955328,-500.0,0.00030136,2]
[319967951,1711042955349,-500.0,0.00030136,2]
[319967952,1711042955370,-2023.95,0.00030136,2]
[319967953,1711042955464,-500.0,0.00030136,2]
[319967954,1711042955489,-500.0,0.00030136,2]
[319967955,1711042955510,-465.72612702,0.00030136,2]
[319967956,1711042955532,-500.0,0.00030136,2]
[319967957,1711042955553,-500.0,0.00030136,2]
[319967958,1711042955575,-500.0,0.00030136,2]
[319967959,1711042955596,-500.0,0.00030136,2]
[319967960,1711042955617,-500.0,0.00030136,2]
[319967961,1711042955640,-500.0,0.00030136,2]
[319967962,1711042955663,-500.0,0.00030136,2]
[319967963,1711042955686,-500.0,0.00030136,2]
[319967964,1711042955707,-500.0,0.00030136,2]
[319967965,1711042955729,-1849.43,0.00030136,2]
[319967966,1711042955752,-1849.43,0.00030136,2]
[319967967,1711042955775,-1849.43,0.00030136,2]
[319967968,1711042955797,-1849.43,0.00030136,2]
[319967969,1711042955819,-1849.43,0.00030136,2]
[319967970,1711042955841,-500.0,0.00030136,30]
[319967971,1711042955861,-1849.43,0.00030136,2]
[319967972,1711042955883,-1849.43,0.00030136,2]
[319967973,1711042955908,-1849.43,0.00030136,2]
[319967974,1711042955930,-1849.43,0.00030136,2]
[319967975,1711042955951,-1849.43,0.00030136,2]
[319967976,1711042955976,-1849.43,0.00030136,2]
[319967977,1711042955997,-1849.43,0.00030136,2]
[319967978,1711042956019,-1849.43,0.00030136,2]
[319967979,1711042956040,-1849.43,0.00030136,2]
[319967980,1711042956062,-1849.43,0.00030136,2]
[319967981,1711042956084,-1849.43,0.00030136,2]
[319967982,1711042956105,-1849.43,0.00030136,2]
[319967983,1711042956127,-1849.43,0.00030136,2]
[319967984,1711042956149,-1849.43,0.00030136,2]
[319967985,1711042956170,-1849.43,0.00030136,2]
[319967986,1711042956191,-1849.43,0.00030136,2]
[319967987,1711042956214,-1849.43,0.00030136,2]
[319967988,1711042956237,-1849.43,0.00030136,2]
[319967989,1711042956259,-500.0,0.00030136,2]
[319967990,1711042956281,-501.693038,0.00030136,2]
[319967991,1711042956303,-1849.53905635,0.00030136,2]
[319967992,1711042956324,-500.0,0.00030136,2]
[319967993,1711042956345,-500.0,0.00030136,2]
[319967994,1711042956365,-500.0,0.00030136,2]
[319967995,1711042956387,-500.0,0.00030136,2]
[319967996,1711042956409,-302.74513287,0.00030136,2]
[319967997,1711042956431,-553.79664584,0.00030136,2]
[319967998,1711042956452,-500.0,0.00030136,2]
[319967999,1711042956473,-500.0,0.00030136,2]
[319968000,1711042956494,-500.0,0.00030136,2]
[319968001,1711042956515,-605.2,0.00030136,2]
[319968002,1711042956537,-500.0,0.00030136,2]
[319968003,1711042956559,-501.95211415,0.00030136,2]
[319968004,1711042956581,-500.0,0.00030136,2]
[319968005,1711042956602,-623.4,0.00030136,2]
[319968006,1711042956624,-500.66802212,0.00030136,2]
[319968007,1711042956648,-500.0,0.00030136,2]
[319968008,1711042956672,-500.0,0.00030136,2]
[319968009,1711042956693,-679.01,0.00030136,2]
[319968010,1711042956715,-500.0,0.00030136,2]
[319968011,1711042956736,-500.0,0.00030136,2]
[319968012,1711042956759,-441.12140883,0.00030136,2]
[319968013,1711042956780,-500.0,0.00030136,2]
[319968014,1711042956802,-500.0,0.00030136,2]
[319968015,1711042956825,-500.0,0.00030136,2]
[319968016,1711042956846,-500.0,0.00030136,2]
[319968017,1711042956867,-500.0,0.00030136,2]
[319968018,1711042956889,-1413.72,0.00030136,2]
[319968019,1711042956911,-251.74942222,0.00030136,2]
[319968020,1711042957001,-500.0,0.00030136,2]
[319968021,1711042957022,-500.0,0.00030136,2]
[319968022,1711042957044,-502.08548771,0.00030136,2]
[319968023,1711042957068,-3846.6,0.00030136,2]
[319968024,1711042957090,-531.59828523,0.00030136,2]
[319968025,1711042957111,-900.12,0.00030136,2]
[319968026,1711042957133,-500.0,0.00030136,2]
[319968027,1711042957157,-641.5843368,0.00030136,2]
[319968028,1711042957179,-483.77721432,0.00030136,2]
[319968029,1711042957200,-221.17798188,0.00030136,2]
[319968030,1711042957220,-500.0,0.00030136,2]
[319968031,1711042957241,-482.23750475,0.00030136,2]
[319968032,1711042957263,-500.0,0.00030136,2]
[319968033,1711042957285,-571.61195367,0.00030136,2]
[319968034,1711042957305,-500.0,0.00030136,2]
[319968035,1711042957326,-500.0,0.00030136,2]
[319968036,1711042957347,-500.0,0.00030136,2]
[319968037,1711042957368,-500.0,0.00030136,2]
[319968038,1711042957389,-500.0,0.00030136,2]
[319968039,1711042957411,-500.0,0.00030136,2]
[319968040,1711042957432,-619.91,0.00030136,2]
[319968041,1711042957453,-497.8784269,0.00030136,2]
[319968042,1711042957473,-619.96745861,0.00030136,2]
[319968043,1711042957492,-500.0,0.00030136,2]
[319968044,1711042957513,-500.0,0.00030136,2]
[319968045,1711042957533,-500.0,0.00030136,2]
[319968046,1711042957554,-500.0,0.00030136,2]
[319968047,1711042957576,-500.0,0.00030136,2]
[319968048,1711042957597,-151.0,0.00030136,2]
[319968049,1711042957617,-500.0,0.00030136,2]
[319968050,1711042957638,-760.32,0.00030136,2]
[319968051,1711042957660,-500.0,0.00030136,2]
[319968052,1711042957682,-1223.28,0.00030136,2]
[319968053,1711042957707,-500.73641253,0.00030136,2]
[319968054,1711042957728,-500.0,0.00030136,2]
[319968055,1711042957750,-624.37,0.00030136,2]
[319968056,1711042957771,-518.63270059,0.00030136,2]
[319968057,1711042957793,-500.0,0.00030136,2]
[319968058,1711042957814,-500.0,0.00030136,2]
[319968059,1711042957836,-500.0,0.00030136,2]
[319968060,1711042957857,-946.8,0.00030136,2]
[319968061,1711042957878,-500.0,0.00030136,2]
[319968062,1711042957901,-500.0,0.00030136,2]
[319968063,1711042957922,-500.0,0.00030136,2]
[319968064,1711042957944,-500.67688783,0.00030136,2]
[319968065,1711042957966,-500.0,0.00030136,2]
[319968066,1711042957987,-500.0,0.00030136,2]
[319968067,1711042958008,-949.19,0.00030136,2]
[319968068,1711042958029,-500.0,0.00030136,2]
[319968069,1711042958050,-500.0,0.00030136,2]
[319968070,1711042958071,-500.0,0.00030136,2]
[319968071,1711042958092,-500.0,0.00030136,2]
[319968072,1711042958114,-2872.85,0.00030136,2]
[319968073,1711042958136,-500.0,0.00030136,2]
[319968074,1711042958163,-500.0,0.00030136,2]
[319968075,1711042958185,-500.0,0.00030136,2]
[319968076,1711042958208,-500.67771997,0.00030136,2]
[319968077,1711042958232,-500.0,0.00030136,2]
[319968078,1711042958258,-500.0,0.00030136,2]
[319968079,1711042958281,-500.0,0.00030136,2]
[319968080,1711042958302,-1182.39,0.00030136,2]
[319968081,1711042958324,-525.05,0.00030136,2]
[319968082,1711042958346,-500.0,0.00030136,2]
[319968083,1711042958368,-505.97304242,0.00030136,2]
[319968084,1711042958458,-500.0,0.00030136,2]
[319968085,1711042958479,-5480.78,0.00030136,2]
[319968086,1711042958501,-500.0,0.00030136,2]
[319968087,1711042958522,-500.0,0.00030136,2]
[319968088,1711042958543,-500.2173294,0.00030136,2]
[319968089,1711042958565,-8908.51,0.00030136,2]
[319968090,1711042958587,-500.0,0.00030136,2]
[319968091,1711042958609,-4774.73,0.00030136,2]
[319968092,1711042958630,-4774.73,0.00030136,2]
[319968093,1711042958656,-4774.73,0.00030136,2]
[319968094,1711042958681,-4774.73,0.00030136,2]
[319968095,1711042958702,-4774.73,0.00030136,2]
[319968096,1711042958724,-4774.73,0.00030136,2]
[319968097,1711042958745,-4774.73,0.00030136,2]
[319968098,1711042958769,-4774.73,0.00030136,2]
[319968099,1711042958790,-4774.73,0.00030136,2]
[319968100,1711042958811,-4774.73,0.00030136,2]
[319968101,1711042958833,-4774.73,0.00030136,2]
[319968102,1711042958855,-4774.73,0.00030136,2]
[319968103,1711042958877,-1416.55,0.00030136,2]
[319968104,1711042958904,-4774.73,0.00030136,2]
[319968105,1711042958929,-4774.73,0.00030136,2]
[319968106,1711042958953,-4774.73,0.00030136,2]
[319968107,1711042958977,-4774.73,0.00030136,2]
[319968108,1711042959000,-4774.73,0.00030136,2]
[319968109,1711042959023,-4774.73,0.00030136,2]
[319968110,1711042959045,-4774.73,0.00030136,2]
[319968111,1711042959067,-4774.73,0.00030136,2]
[319968112,1711042959088,-4774.73,0.00030136,2]
[319968113,1711042959109,-4774.73,0.00030136,2]
[319968114,1711042959134,-4774.73,0.00030136,2]
[319968115,1711042959164,-4774.77357638,0.00030136,2]
[319968116,1711042959187,-500.0,0.00030136,2]
[319968117,1711042959208,-500.0,0.00030136,2]
[319968118,1711042959230,-9331.13,0.00030136,2]
[319968119,1711042959252,-500.85339905,0.00030136,2]
[319968120,1711042959273,-500.0,0.00030136,2]
[319968121,1711042959295,-500.0,0.00030136,2]
[319968122,1711042959317,-1885.2,0.00030136,2]
[319968123,1711042959338,-501.32830905,0.00030136,2]
[319968124,1711042959361,-500.0,0.00030136,2]
[319968125,1711042959382,-500.0,0.00030136,2]
[319968126,1711042959407,-963.82,0.00030136,2]
[319968127,1711042959429,-1254.26,0.00030136,2]
[319968128,1711042959450,-500.0,0.00030136,2]
[319968129,1711042959471,-1115.39,0.00030136,2]
[319968130,1711042959492,-6606.24,0.00030136,2]
[319968131,1711042959514,-500.0,0.00030136,2]
[319968132,1711042959538,-798.48,0.00030136,2]
[319968133,1711042959560,-500.0,0.00030136,2]
[319968134,1711042959581,-559.26,0.00030136,2]
[319968135,1711042959603,-500.0,0.00030136,2]
[319968136,1711042959625,-224.66902466,0.00030136,2]
[319968137,1711042959650,-500.0,0.00030136,2]
[319968138,1711042959675,-500.0,0.00030136,2]
[319968139,1711042959696,-500.0,0.00030136,2]
[319968140,1711042959717,-500.69733166,0.00030136,2]
[319968141,1711042959737,-500.0,0.00030136,2]
[319968142,1711042959761,-500.0,0.00030136,2]
[319968143,1711042959783,-500.0,0.00030136,2]
[319968144,1711042959804,-857.05,0.00030136,2]
[319968145,1711042959902,-6164.25,0.00030136,2]
[319968146,1711042959926,-4167.63,0.00030136,2]
[319968147,1711042959949,-2743.3,0.00030136,2]
[319968148,1711042959975,-500.0,0.00030136,2]
[319968149,1711042960001,-500.95989235,0.00030136,2]
[319968150,1711042960024,-500.0,0.00030136,2]
[319968151,1711042960048,-500.0,0.00030136,2]
[319968152,1711042960071,-506.62155455,0.00030136,2]
[319968153,1711042960094,-500.0,0.00030136,2]
[319968154,1711042960117,-500.70587584,0.00030136,2]
[319968155,1711042960138,-756.76,0.00030136,2]
[319968156,1711042960162,-500.0,0.00030136,2]
[319968157,1711042960183,-500.0,0.00030136,2]
[319968158,1711042960204,-500.0,0.00030136,2]
[319968159,1711042960225,-797.45,0.00030136,2]
[319968160,1711042960247,-624.91,0.00030136,2]
[319968161,1711042960269,-2774.37,0.00030136,2]
[319968162,1711042960292,-500.0,0.00030136,2]
[319968163,1711042960313,-500.0,0.00030136,2]
[319968164,1711042960334,-500.0,0.00030136,2]
[319968165,1711042960355,-500.0,0.00030136,2]
[319968166,1711042960376,-500.0,0.00030136,2]
[319968167,1711042960397,-500.0,0.00030136,2]
[319968168,1711042960423,-1004.85,0.00030136,2]
[319968169,1711042960448,-758.19,0.00030136,2]
[319968170,1711042960470,-10377.98,0.00030136,2]
[319968171,1711042960492,-500.0,0.00030136,2]
[319968172,1711042960513,-500.0,0.00030136,2]
[319968173,1711042960535,-500.0,0.00030136,2]
[319968174,1711042960557,-500.0,0.00030136,2]
[319968175,1711042960578,-500.0,0.00030136,2]
[319968176,1711042960600,-500.0,0.00030136,2]
[319968177,1711042960620,-1955.5,0.00030136,2]
[319968178,1711042960642,-500.0,0.00030136,2]
[319968179,1711042960664,-500.0,0.00030136,2]
[319968180,1711042960686,-500.0,0.00030136,2]
[319968181,1711042960707,-500.0,0.00030136,2]
[319968182,1711042960728,-500.0,0.00030136,2]
[319968183,1711042960750,-2196.71,0.00030136,2]
[319968184,1711042960771,-464.56640573,0.00030136,2]
[319968185,1711042960792,-500.0,0.00030136,2]
[319968186,1711042960814,-500.0,0.00030136,2]
[319968187,1711042960835,-2795.5,0.00030136,2]
[319968188,1711042960857,-500.0,0.00030136,2]
[319968189,1711042960879,-500.0,0.00030136,2]
[319968190,1711042960902,-937.06,0.00030136,2]
[319968191,1711042960926,-13573.2,0.00030136,2]
[319968192,1711042960949,-1518.36,0.00030136,2]
[319968193,1711042960970,-365.43296913,0.00030136,2]
[319968194,1711042960991,-500.0,0.00030136,2]
[319968195,1711042961017,-506.42519153,0.00030136,2]
[319968196,1711042961039,-3132.59,0.00030136,2]
[319968197,1711042961060,-500.0,0.00030136,2]
[319968198,1711042961081,-22257.7,0.00030136,2]
[319968199,1711042961103,-500.0,0.00030136,2]
[319968200,1711042961124,-500.0,0.00030136,2]
[319968201,1711042961145,-553.23,0.00030136,2]
[319968202,1711042961168,-786.59,0.00030136,2]
[319968203,1711042961190,-763.84,0.00030136,2]
[319968204,1711042961276,-500.0,0.00030136,2]
[319968205,1711042961298,-1179.96,0.00030136,2]
[319968206,1711042961319,-500.0,0.00030136,2]
[319968207,1711042961546,47.0,0.00030135,2]
[319968208,1711042962235,171.5649184,0.00029834,2]
[319968343,1711043440551,-154.87609912,0.00024461,2]
[319968344,1711043440561,-24900.0,0.00024462,2]
[319968345,1711043440570,-275.85315312,0.00026286,3]
[319968346,1711043440580,-403.38913634,0.00026386,2]
[319968347,1711043440590,-1000.0,0.00027297,2]
[319968348,1711043440599,-166.666666,0.00027626,2]
[319968349,1711043440608,-997.0,0.00027797,5]
[319968350,1711043440619,-220.02278041,0.00028036,2]
[319968351,1711043440628,-166.666666,0.00028379,2]
[319968352,1711043440638,-192.245171,0.00028569,2]
[319968353,1711043440649,-7140.01196129,0.00029,2]
[319968354,1711043440658,-166.666666,0.00029133,2]
[319968355,1711043440667,-997.0,0.0002926,5]
[319968356,1711043440677,-275.85315312,0.00029659,4]
[319968357,1711043440686,-750.26678896,0.00029834,2]
[319968358,1711043440695,-7750.33441955,0.0002988,2]
[319968359,1711043440705,-166.666666,0.00029886,2]
[319968360,1711043440717,-324.0,0.0003,2]
[319968361,1711043440726,-500.0,0.00030099,2]
[319968362,1711043440736,-500.0,0.00030099,2]
[319968363,1711043440745,-500.0,0.00030099,2]
[319968364,1711043440754,-500.0,0.00030099,2]
[319968365,1711043440763,-500.0,0.00030099,2]
[319968366,1711043440772,-500.0,0.00030099,2]
[319968367,1711043440781,-500.0,0.00030099,2]
[319968368,1711043440799,-500.0,0.00030099,2]
[319968369,1711043440815,-500.0,0.00030099,2]
[319968370,1711043440834,-500.0,0.00030099,2]
[319968371,1711043440853,-500.0,0.00030099,2]
[319968372,1711043440868,-500.0,0.00030099,2]
[319968373,1711043440885,-500.0,0.00030099,2]
[319968374,1711043440901,-500.0,0.00030099,2]
[319968375,1711043440917,-500.0,0.00030099,2]
[319968376,1711043440935,-500.0,0.00030099,2]
[319968377,1711043440951,-500.0,0.00030099,2]
[319968378,1711043440969,-500.0,0.00030099,2]
[319968379,1711043440988,-500.0,0.00030099,2]
[319968380,1711043441003,-500.0,0.00030099,2]
[319968381,1711043441015,-500.0,0.00030099,2]
[319968382,1711043441031,-500.0,0.00030099,2]
[319968383,1711043441046,-500.0,0.00030099,2]
[319968384,1711043441060,-500.0,0.00030099,2]
[319968385,1711043441073,-500.0,0.00030099,2]
[319968386,1711043441087,-500.0,0.00030099,2]
[319968387,1711043441100,-500.0,0.00030099,2]
[319968388,1711043441114,-500.0,0.00030099,2]
[319968389,1711043441128,-500.0,0.00030099,2]
[319968390,1711043441142,-500.0,0.00030099,2]
[319968391,1711043441156,-500.0,0.00030099,2]
[319968392,1711043441170,-400.0,0.000301,2]
[319968393,1711043441184,-166.37319662,0.00030104,2]
[319968394,1711043441197,-500.0,0.00030136,2]
[319968395,1711043441211,-500.0,0.00030136,2]
[319968396,1711043441228,-500.0,0.00030136,2]
[319968397,1711043441243,-500.0,0.00030136,2]
[319968398,1711043441256,-500.0,0.00030136,2]
[319968399,1711043441270,-500.0,0.00030136,2]
[319968400,1711043441284,-725.59,0.00030136,2]
[319968401,1711043441298,-283.67289951,0.00030136,3]
[319968402,1711043441312,-1254.32,0.00030136,2]
[319968403,1711043441326,-1656.06,0.00030136,2]
[319968404,1711043441340,-500.0,0.00030136,2]
[319968405,1711043441355,-728.55,0.00030136,2]
[319968406,1711043441369,-650.72,0.00030136,2]
[319968407,1711043441383,-500.0,0.00030136,2]
[319968408,1711043441398,-500.0,0.00030136,2]
[319968410,1711043441486,-501.1713708,0.00030136,2]
[319968411,1711043441497,-500.0,0.00030136,2]
[319968412,1711043441507,-1354.82,0.00030136,2]
[319968413,1711043441516,-500.0,0.00030136,2]
[319968414,1711043441526,-862.61,0.00030136,2]
[319968415,1711043441535,-500.0,0.00030136,2]
[319968416,1711043441545,-500.0,0.00030136,2]
[319968417,1711043441554,-500.0,0.00030136,2]
[319968418,1711043441563,-500.0,0.00030136,2]
[319968419,1711043441573,-500.0,0.00030136,2]
[319968420,1711043441583,-597.43,0.00030136,2]
[319968421,1711043441592,-500.0,0.00030136,2]
[319968422,1711043441602,-500.0,0.00030136,2]
[319968423,1711043441612,-816.79,0.00030136,2]
[319968424,1711043441621,-502.2580271,0.00030136,2]
[319968425,1711043441631,-500.0,0.00030136,2]
[319968426,1711043441640,-500.0,0.00030136,2]
[319968427,1711043441650,-500.0,0.00030136,2]
[319968428,1711043441660,-1114.01,0.00030136,2]
[319968429,1711043441670,-500.0,0.00030136,2]
[319968430,1711043441680,-500.0,0.00030136,2]
[319968431,1711043441690,-3686.33,0.00030136,2]
[319968432,1711043441700,-500.0,0.00030136,2]
[319968433,1711043441710,-500.0,0.00030136,2]
[319968434,1711043441723,-269.77825834,0.00030136,2]
[319968435,1711043441733,-500.0,0.00030136,2]
[319968436,1711043441744,-500.0,0.00030136,2]
[319968437,1711043441753,-594.08,0.00030136,2]
[319968438,1711043441763,-500.0,0.00030136,2]
[319968439,1711043441772,-500.0,0.00030136,2]
[319968440,1711043441781,-8942.33,0.00030136,2]
[319968441,1711043441790,-500.0,0.00030136,2]
[319968442,1711043441800,-500.0,0.00030136,2]
[319968443,1711043441809,-500.0,0.00030136,2]
[319968444,1711043441821,-500.0,0.00030136,2]
[319968445,1711043441831,-2753.15,0.00030136,2]
[319968446,1711043441839,-503.18,0.00030136,2]
[319968447,1711043441849,-4948.67,0.00030136,2]
[319968448,1711043441859,-5252.41,0.00030136,2]
[319968449,1711043441869,-500.0,0.00030136,2]
[319968450,1711043441878,-8537.33,0.00030136,2]
[319968451,1711043441888,-500.0,0.00030136,2]
[319968452,1711043441897,-500.0,0.00030136,2]
[319968453,1711043441907,-1357.53,0.00030136,2]
[319968454,1711043441916,-500.0,0.00030136,2]
[319968455,1711043441926,-765.21,0.00030136,2]
[319968456,1711043441935,-500.0,0.00030136,2]
[319968457,1711043441944,-728.64,0.00030136,2]
[319968458,1711043441953,-1172.31,0.00030136,2]